fUSD/lending_fUSD_20251002
["ID","MTS","AMOUNT","RATE_DAILY","PERIOD"]
[388795844,1759363831590,-195.0,0.00016904,2]
[388795846,1759363831601,-195.0,0.0001696,2]
[388795848,1759363831612,-154.53961791,0.00016979,2]
[388795858,1759363831765,-145.46038209,0.00016979,2]
[388795860,1759363831780,-300.0,0.00016979,2]
[388795862,1759363831791,-639.0,0.0001698,2]
[388795863,1759363831804,-1200.0,0.00016999,2]
[388795865,1759363831815,-174.63,0.00017,2]
[388795867,1759363831828,-250.0,0.00017,2]
[388795868,1759363831838,-2021.91,0.00017,7]
[388795869,1759363831849,-174.63,0.000171,2]
[388795870,1759363831860,-297.34,0.000173,2]
[388795871,1759363831872,-250.33729324,0.00018194,2]
[388795872,1759363831883,-300.0,0.0001847,2]
[388795873,1759363831893,-300.0,0.0001847,2]
[388795874,1759363831904,-209.0,0.0001847,2]
[388795875,1759363831914,-1047.0974038,0.00018506,2]
[388795876,1759363831924,-250.0,0.00018506,2]
[388795877,1759363831936,-250.0,0.00018506,2]
[388795878,1759363831948,-195.0,0.00018508,2]
[388795879,1759363831959,-1680.0,0.00018659,2]
[388795880,1759363831969,-1999.99,0.00019,2]
[388795881,1759363831980,-300.0,0.00019,2]
[388795882,1759363831991,-150.34,0.00019018,2]
[388795883,1759363832007,-154.42,0.00019019,2]
[388795884,1759363832018,-8122.9119372,0.00019063,2]
[388795885,1759363832030,-850.0,0.00019072,2]
[388795886,1759363832039,-150.0,0.00019073,2]
[388795887,1759363832049,-150.0,0.00019073,2]
[388795888,1759363832059,-150.56,0.00019073,2]
[388795889,1759363832069,-787.0,0.00019073,2]
[388795890,1759363832078,-2042.0,0.00019073,2]
[388795892,1759363832088,-1264.0,0.00019073,2]
[388795894,1759363832097,-3399.0,0.00019073,2]
[388795896,1759363832107,-603.0,0.00019073,2]
[388795898,1759363832116,-4113.0,0.00019073,2]
[388795900,1759363832125,-18902.0,0.00019073,2]
[388795902,1759363832134,-11057.34,0.000191,2]
[388795904,1759363832143,-3469.0,0.00019304,2]
[388795906,1759363832153,-623.58710448,0.00019394,2]
[388795908,1759363832163,-500.0,0.00019394,2]
[388795910,1759363832172,-650.1185586,0.00019394,2]
[388795912,1759363832182,-500.0,0.00019394,2]
[388795914,1759363832192,-223.34463148,0.00019394,2]
[388795916,1759363832201,-239.84119403,0.00019394,2]
[388795918,1759363832210,-500.0,0.00019394,2]
[388795920,1759363832219,-500.0,0.00019394,2]
[388795922,1759363832229,-500.0,0.00019394,2]
[388795924,1759363832239,-500.0,0.00019394,2]
[388795926,1759363832253,-500.0,0.00019394,2]
[388795929,1759363832263,-500.0,0.00019394,2]
[388795931,1759363832274,-500.0,0.00019394,2]
[388795934,1759363832284,-500.0,0.00019394,2]
[388795938,1759363832294,-500.0,0.00019394,2]
[388795942,1759363832303,-200.0,0.00019394,2]
[388795946,1759363832313,-500.0,0.00019394,2]
[388795950,1759363832324,-200.0,0.00019394,2]
[388795954,1759363832334,-500.0,0.00019394,2]
[388795958,1759363832343,-200.0,0.00019394,2]
[388795961,1759363832353,-500.0,0.00019394,2]
[388795964,1759363832362,-200.0,0.00019394,2]
[388795968,1759363832375,-500.0,0.00019394,2]
[388795970,1759363832385,-200.0,0.00019394,2]
[388795972,1759363832395,-500.0,0.00019394,2]
[388795973,1759363832404,-200.0,0.00019394,2]
[388795975,1759363832414,-151.0,0.00019394,2]
[388795977,1759363832423,-500.0,0.00019394,2]
[388795979,1759363832433,-170.26346873,0.00019394,2]
[388795981,1759363832443,-500.0,0.00019394,2]
[388795983,1759363832452,-500.0,0.00019394,2]
[388795985,1759363832462,-500.0,0.00019394,2]
[388795988,1759363832471,-500.0,0.00019394,2]
[388795990,1759363832481,-500.0,0.00019394,2]
[388795992,1759363832490,-322.6107,0.00019394,2]
[388795994,1759363832503,-543.61,0.00019394,2]
[388795995,1759363832515,-324.19,0.00019432,2]
[388795997,1759363832525,-476.349,0.00019629,2]
[388795999,1759363832535,-1000.0,0.00019629,2]
[388796001,1759363832544,-834.488,0.00019629,2]
[388796004,1759363832555,-543.61,0.00019668,2]
[388796005,1759363832570,-370.35923647,0.00019696,2]
[388796008,1759363832580,-200.0,0.00019807,2]
[388796010,1759363832590,-543.61,0.00019942,2]
[388796012,1759363832600,-150.0,0.00019948,4]
[388796014,1759363832609,-150.0,0.00019948,4]
[388796016,1759363832618,-150.0,0.00019948,4]
[388796018,1759363832627,-150.0,0.00019948,4]
[388796020,1759363832637,-150.0,0.00019948,4]
[388796022,1759363832647,-150.0,0.00019948,4]
[388796024,1759363832656,-150.0,0.00019948,4]
[388796026,1759363832666,-150.0,0.00019948,4]
[388796028,1759363832675,-250.0,0.00020121,2]
[388796030,1759363832684,-420.0,0.00020143,2]
[388796032,1759363832694,-420.0,0.00020143,2]
[388796034,1759363832703,-480.31,0.00020184,2]
[388796036,1759363832712,-173.88,0.000202,2]
[388796038,1759363832721,-543.61,0.00020216,2]
[388796040,1759363832731,-154.42,0.00020287,2]
[388796042,1759363832740,-666.0,0.00020453,3]
[388796044,1759363832754,-1200.0,0.00020481,2]
[388796046,1759363832764,-543.61,0.0002049,2]
[388796048,1759363832774,-543.62,0.00020764,2]
[388796050,1759363832784,-165.21,0.00020882,2]
[388796052,1759363832794,-212.76,0.000209,2]
[388796054,1759363832803,-173.88,0.00020986,2]
[388796056,1759363832813,-350.0,0.00021,2]
[388796058,1759363832822,-150.0,0.00021056,4]
[388796060,1759363832831,-800.0,0.0002107,2]
[388796062,1759363832841,-1000.0,0.00021141,2]
[388796064,1759363832850,-2000.0,0.000214,2]
[388796066,1759363832860,-243.0,0.000215,2]
[388796068,1759363832870,-514.0,0.000215,2]
[388796070,1759363832879,-385.0,0.000215,2]
[388796072,1759363832888,-786.0,0.000215,2]
[388796074,1759363832898,-212.76,0.000215,2]
[388796076,1759363832907,-7619.78679275,0.00021527,2]
[388796078,1759363832916,-13356.85393136,0.00021527,2]
[388796079,1759363832926,-2736.64505992,0.00021528,2]
[388796081,1759363832936,-7619.78679275,0.00021528,2]
[388796082,1759363832948,-13863.32612372,0.00021531,2]
[388796083,1759363832957,-2696.90035564,0.00021534,2]
[388796084,1759363832967,-601.43957547,0.00021534,2]
[388796085,1759363832977,-13863.32612372,0.00021538,2]
[388796086,1759363832986,-7619.78679275,0.00021542,2]
[388796087,1759363832999,-13356.85393136,0.00021543,2]
[388796088,1759363833010,-5686.44341261,0.00021548,2]
[388796089,1759363833020,-150.20042167,0.00021552,2]
[388796090,1759363833032,-2696.90035564,0.00021552,2]
[388796091,1759363833041,-154.42,0.00021555,2]
[388796092,1759363833050,-3312.14133451,0.00021556,2]
[388796093,1759363833060,-150.20042167,0.00021558,2]
[388796094,1759363833069,-2736.64505992,0.00021561,2]
[388796095,1759363833078,-150.20042167,0.00021567,2]
[388796096,1759363833088,-3312.14133451,0.00021572,2]
[388796097,1759363833097,-601.43957547,0.00021572,2]
[388796098,1759363833106,-3203.82459977,0.00021576,2]
[388796099,1759363833116,-2736.64505992,0.00021576,2]
[388796100,1759363833125,-2696.90035564,0.00021579,2]
[388796101,1759363833135,-2696.90035564,0.00021582,2]
[388796102,1759363833144,-681.45523713,0.0002159,2]
[388796103,1759363833153,-5686.44341261,0.00021591,2]
[388796104,1759363833162,-2696.90035564,0.00021596,2]
[388796105,1759363833171,-681.45523713,0.00021597,2]
[388796106,1759363833181,-601.43957547,0.00021602,2]
[388796107,1759363833191,-2696.90035564,0.00021603,2]
[388796108,1759363833200,-3203.82459977,0.00021604,2]
[388796109,1759363833208,-3312.14133451,0.00021604,2]
[388796110,1759363833218,-681.45523713,0.00021608,2]
[388796111,1759363833227,-3203.82459977,0.00021608,2]
[388796112,1759363833236,-150.20042167,0.0002161,2]
[388796113,1759363833249,-2696.90035564,0.00021614,2]
[388796114,1759363833258,-681.45523713,0.00021615,2]
[388796115,1759363833268,-2736.64505992,0.00021615,2]
[388796116,1759363833277,-5698.47220406,0.00021617,2]
[388796117,1759363833287,-7619.78679275,0.00021619,2]
[388796118,1759363833296,-2696.90035564,0.00021628,2]
[388796119,1759363833306,-2696.90035564,0.0002163,2]
[388796120,1759363833315,-5686.44341261,0.00021631,2]
[388796121,1759363833325,-3203.82459977,0.00021632,2]
[388796122,1759363833334,-601.43957547,0.00021633,2]
[388796123,1759363833344,-13863.32612372,0.00021635,2]
[388796124,1759363833353,-5698.47220406,0.00021643,2]
[388796125,1759363833363,-13356.85393136,0.00021645,2]
[388796126,1759363833372,-5686.44341261,0.00021647,2]
[388796127,1759363833382,-13356.85393136,0.00021648,2]
[388796128,1759363833392,-3312.14133451,0.00021649,2]
[388796129,1759363833402,-13863.32612372,0.0002165,2]
[388796130,1759363833411,-5698.47220406,0.00021661,2]
[388796131,1759363833421,-601.43957547,0.00021674,2]
[388796132,1759363833430,-5698.47220406,0.00021676,2]
[388796133,1759363833440,-13356.85393136,0.00021677,2]
[388796134,1759363833449,-5686.44341261,0.00021677,2]
[388796135,1759363833461,-3203.82459977,0.00021678,2]
[388796136,1759363833471,-13863.32612372,0.00021679,2]
[388796137,1759363833481,-5698.47220406,0.00021682,2]
[388796138,1759363833491,-150.20042167,0.00021684,2]
[388796139,1759363833503,-3312.14133451,0.0002169,2]
[388796140,1759363833512,-681.45523713,0.00021693,2]
[388796141,1759363833522,-5819.05719628,0.00021693,2]
[388796142,1759363833536,-1800.72959647,0.00021693,2]
[388796143,1759363833546,-2696.90035564,0.00021695,2]
[388796144,1759363833555,-2736.64505992,0.00021696,2]
[388796145,1759363833565,-200.0,0.000217,2]
[388796146,1759363833575,-400.0,0.0002177,2]
[388796147,1759363833585,-500.0,0.0002177,2]
[388796148,1759363833594,-700.0,0.0002177,2]
[388796149,1759363833605,-700.0,0.0002177,2]
[388796150,1759363833614,-500.0,0.00021779,2]
[388796151,1759363833624,-500.0,0.00021779,2]
[388796152,1759363833634,-500.0,0.00021779,2]
[388796153,1759363833644,-500.0,0.00021779,2]
[388796154,1759363833654,-636.02084627,0.00021779,2]
[388796155,1759363833663,-500.0,0.00021779,2]
[388796156,1759363833672,-225.30182527,0.00021779,2]
[388796157,1759363833682,-500.0,0.00021779,2]
[388796158,1759363833691,-648.56337907,0.00021779,2]
[388796159,1759363833700,-500.0,0.00021779,2]
[388796160,1759363833710,-500.0,0.00021779,2]
[388796161,1759363833720,-500.0,0.00021779,2]
[388796162,1759363833729,-397.85193874,0.00021779,2]
[388796163,1759363833738,-1000.0,0.0002178,3]
[388796164,1759363833750,-1000.0,0.0002178,3]
[388796165,1759363833760,-1000.0,0.0002178,3]
[388796166,1759363833769,-1000.0,0.0002178,3]
[388796167,1759363833780,-1000.0,0.0002178,3]
[388796168,1759363833789,-1000.0,0.0002178,3]
[388796169,1759363833799,-1000.0,0.0002178,3]
[388796170,1759363833808,-1000.0,0.0002178,3]
[388796171,1759363833818,-1000.0,0.0002178,3]
[388796172,1759363833827,-1000.0,0.0002178,3]
[388796173,1759363833837,-1000.0,0.0002178,3]
[388796174,1759363833846,-1000.0,0.0002178,3]
[388796175,1759363833856,-1000.0,0.0002178,3]
[388796176,1759363833865,-1000.0,0.0002178,3]
[388796177,1759363833874,-938.37826541,0.0002178,3]
[388796178,1759363833884,-1263.872,0.00021792,2]
[388796179,1759363833893,-154.90970295,0.00021816,2]
[388796180,1759363833902,-1465.9562,0.00021817,2]
[388796181,1759363833912,-1000.0,0.00021817,2]
[388796182,1759363833921,-1759.75044614,0.00021817,2]
[388796183,1759363833935,-3240.24955386,0.00021817,2]
[388796184,1759363833944,-167.76902519,0.00021817,2]
[388796185,1759363833957,-163.97879072,0.00021817,2]
[388796186,1759363833966,-209.91358765,0.00021817,2]
[388796187,1759363833975,-400.0,0.0002187,2]
[388796188,1759363833986,-700.0,0.0002187,2]
[388796189,1759363833997,-168.0,0.00021887,2]
[388796190,1759363834007,-40516.2471732,0.00021915,2]
[388796191,1759363834017,-624.53395144,0.00021916,2]
[388796192,1759363834027,-218.2580119,0.00021916,2]
[388796193,1759363834037,-1186.5753389,0.00021916,5]
[388796194,1759363834046,-7916.16656913,0.00021917,2]
[388796195,1759363834058,-670.42767963,0.00021917,2]
[388796196,1759363834068,-5000.0,0.00021917,2]
[388796197,1759363834078,-500.0,0.00021917,2]
[388796198,1759363834088,-500.0,0.00021917,2]
[388796199,1759363834098,-500.0,0.00021917,2]
[388796200,1759363834107,-1526.29,0.00021917,2]
[388796201,1759363834116,-500.0,0.00021917,2]
[388796202,1759363834127,-500.0,0.00021917,2]
[388796203,1759363834136,-500.0,0.00021917,2]
[388796204,1759363834146,-500.0,0.00021917,2]
[388796205,1759363834155,-500.0,0.00021917,2]
[388796206,1759363834165,-500.0,0.00021917,2]
[388796207,1759363834174,-500.0,0.00021917,2]
[388796208,1759363834183,-500.0,0.00021917,2]
[388796209,1759363834192,-439.4381259,0.00021917,2]
[388796210,1759363834202,-500.0,0.00021917,2]
[388796211,1759363834211,-500.0,0.00021917,2]
[388796212,1759363834220,-500.0,0.00021917,2]
[388796213,1759363834229,-500.0,0.00021917,2]
[388796214,1759363834239,-500.0,0.00021917,2]
[388796215,1759363834251,-500.0,0.00021917,2]
[388796216,1759363834260,-500.0,0.00021917,2]
[388796217,1759363834270,-500.0,0.00021917,2]
[388796218,1759363834279,-500.0,0.00021917,2]
[388796219,1759363834288,-500.0,0.00021917,2]
[388796220,1759363834298,-500.0,0.00021917,2]
[388796221,1759363834307,-500.0,0.00021917,2]
[388796222,1759363834317,-500.0,0.00021917,2]
[388796223,1759363834326,-500.0,0.00021917,2]
[388796224,1759363834335,-500.0,0.00021917,2]
[388796225,1759363834344,-500.0,0.00021917,2]
[388796226,1759363834354,-500.0,0.00021917,2]
[388796227,1759363834364,-500.0,0.00021917,2]
[388796228,1759363834373,-500.0,0.00021917,2]
[388796229,1759363834383,-400.0,0.00021917,2]
[388796230,1759363834392,-500.0,0.00021917,2]
[388796231,1759363834401,-500.0,0.00021917,2]
[388796232,1759363834411,-565.99,0.00021917,2]
[388796233,1759363834421,-500.0,0.00021917,2]
[388796234,1759363834430,-285.80391525,0.00021917,2]
[388796235,1759363834439,-500.0,0.00021917,2]
[388796236,1759363834448,-500.0,0.00021917,2]
[388796237,1759363834458,-500.0,0.00021917,2]
[388796238,1759363834468,-563.05905401,0.00021917,2]
[388796239,1759363834477,-500.0,0.00021917,2]
[388796240,1759363834487,-500.0,0.00021917,2]
[388796241,1759363834499,-500.0,0.00021917,2]
[388796242,1759363834509,-1098.94,0.00021917,2]
[388796243,1759363834518,-500.0,0.00021917,2]
[388796244,1759363834527,-234.01268234,0.00021917,2]
[388796245,1759363834536,-500.0,0.00021917,2]
[388796246,1759363834545,-500.0,0.00021917,2]
[388796247,1759363834555,-500.0,0.00021917,2]
[388796248,1759363834564,-500.0,0.00021917,2]
[388796249,1759363834573,-500.0,0.00021917,2]
[388796250,1759363834583,-500.0,0.00021917,2]
[388796251,1759363834592,-500.0,0.00021917,2]
[388796252,1759363834601,-500.0,0.00021917,2]
[388796253,1759363834611,-500.0,0.00021917,2]
[388796254,1759363834620,-1359.78,0.00021917,2]
[388796255,1759363834630,-500.0,0.00021917,2]
[388796256,1759363834639,-500.0,0.00021917,2]
[388796257,1759363834648,-500.0,0.00021917,2]
[388796258,1759363834657,-500.0,0.00021917,2]
[388796259,1759363834666,-500.0,0.00021917,2]
[388796260,1759363834675,-500.0,0.00021917,2]
[388796261,1759363834684,-500.0,0.00021917,2]
[388796262,1759363834693,-500.3165239,0.00021917,2]
[388796263,1759363834703,-500.0,0.00021917,2]
[388796264,1759363834712,-500.0,0.00021917,2]
[388796265,1759363834721,-670.73,0.00021917,2]
[388796266,1759363834731,-500.0,0.00021917,2]
[388796267,1759363834741,-500.0,0.00021917,2]
[388796268,1759363834753,-500.0,0.00021917,2]
[388796269,1759363834763,-500.0,0.00021917,2]
[388796270,1759363834772,-500.0,0.00021917,2]
[388796271,1759363834781,-500.0,0.00021917,2]
[388796272,1759363834791,-500.0,0.00021917,2]
[388796273,1759363834800,-500.0,0.00021917,2]
[388796274,1759363834810,-500.0,0.00021917,2]
[388796275,1759363834820,-500.0,0.00021917,2]
[388796276,1759363834830,-500.0,0.00021917,2]
[388796277,1759363834840,-500.0,0.00021917,2]
[388796278,1759363834849,-500.0,0.00021917,2]
[388796279,1759363834859,-500.0,0.00021917,2]
[388796280,1759363834869,-500.0,0.00021917,2]
[388796281,1759363834879,-512.08,0.00021917,2]
[388796282,1759363834889,-500.0,0.00021917,2]
[388796283,1759363834899,-500.0,0.00021917,2]
[388796284,1759363834909,-789.65,0.00021917,2]
[388796285,1759363834919,-500.0,0.00021917,2]
[388796286,1759363834929,-500.0,0.00021917,2]
[388796287,1759363834947,-500.0,0.00021917,2]
[388796288,1759363835207,-706.53,0.00021917,2]
[388796289,1759363835219,-500.0,0.00021917,2]
[388796290,1759363835229,-908.26,0.00021917,2]
[388796291,1759363835239,-500.0,0.00021917,2]
[388796292,1759363835250,-500.0,0.00021917,2]
[388796293,1759363835260,-699.72,0.00021917,2]
[388796294,1759363835269,-500.0,0.00021917,2]
[388796295,1759363835278,-500.0,0.00021917,2]
[388796296,1759363835288,-734.75,0.00021917,2]
[388796297,1759363835298,-500.0,0.00021917,2]
[388796298,1759363835307,-500.0,0.00021917,2]
[388796299,1759363835316,-500.0,0.00021917,2]
[388796300,1759363835325,-500.0,0.00021917,2]
[388796301,1759363835334,-567.18,0.00021917,2]
[388796302,1759363835344,-500.0,0.00021917,2]
[388796303,1759363835353,-1654.32,0.00021917,2]
[388796304,1759363835362,-500.43431886,0.00021917,2]
[388796305,1759363835372,-500.33097562,0.00021917,2]
[388796306,1759363835381,-500.0,0.00021917,2]
[388796307,1759363835391,-590.39,0.00021917,2]
[388796308,1759363835401,-500.0,0.00021917,2]
[388796309,1759363835411,-938.86,0.00021917,2]
[388796310,1759363835420,-1391.25,0.00021917,2]
[388796311,1759363835430,-500.0,0.00021917,2]
[388796312,1759363835439,-970.69,0.00021917,2]
[388796313,1759363835448,-500.0,0.00021917,2]
[388796314,1759363835457,-500.0,0.00021917,2]
[388796315,1759363835466,-500.0,0.00021917,2]
[388796316,1759363835475,-500.0,0.00021917,2]
[388796317,1759363835485,-500.0,0.00021917,2]
[388796318,1759363835494,-500.0,0.00021917,2]
[388796319,1759363835505,-500.0,0.00021917,2]
[388796320,1759363835514,-500.0,0.00021917,2]
[388796321,1759363835524,-1697.92,0.00021917,2]
[388796322,1759363835533,-500.0,0.00021917,2]
[388796323,1759363835542,-500.0,0.00021917,2]
[388796324,1759363835552,-500.0,0.00021917,2]
[388796325,1759363835562,-500.0,0.00021917,2]
[388796326,1759363835572,-500.0,0.00021917,2]
[388796327,1759363835581,-500.0,0.00021917,2]
[388796328,1759363835590,-500.0,0.00021917,2]
[388796329,1759363835600,-500.0,0.00021917,2]
[388796330,1759363835609,-500.0,0.00021917,2]
[388796331,1759363835619,-500.0,0.00021917,2]
[388796332,1759363835628,-500.0,0.00021917,2]
[388796333,1759363835638,-1546.71,0.00021917,2]
[388796334,1759363835647,-500.0,0.00021917,2]
[388796335,1759363835656,-500.0,0.00021917,2]
[388796336,1759363835666,-500.0,0.00021917,2]
[388796337,1759363835675,-1530.15,0.00021917,2]
[388796338,1759363835684,-780.71,0.00021917,2]
[388796339,1759363835694,-506.35,0.00021917,2]
[388796340,1759363835703,-1995.76,0.00021917,2]
[388796341,1759363835712,-500.0,0.00021917,2]
[388796342,1759363835722,-616.23,0.00021917,2]
[388796343,1759363835731,-500.0,0.00021917,2]
[388796344,1759363835740,-1470.94,0.00021917,2]
[388796345,1759363835752,-500.0,0.00021917,2]
[388796346,1759363835761,-500.0,0.00021917,2]
[388796347,1759363835770,-541.34,0.00021917,2]
[388796348,1759363835780,-1121.11,0.00021917,2]
[388796349,1759363835789,-692.67,0.00021917,2]
[388796350,1759363835799,-500.0,0.00021917,2]
[388796351,1759363835809,-979.02,0.00021917,2]
[388796352,1759363835818,-1169.47,0.00021917,2]
[388796353,1759363835828,-529.53,0.00021917,2]
[388796354,1759363835837,-500.0,0.00021917,2]
[388796355,1759363835847,-500.0,0.00021917,2]
[388796356,1759363835856,-500.0,0.00021917,2]
[388796357,1759363835866,-500.0,0.00021917,2]
[388796358,1759363835876,-500.0,0.00021917,2]
[388796359,1759363835886,-500.0,0.00021917,2]
[388796360,1759363835895,-895.05,0.00021917,2]
[388796361,1759363835905,-500.0,0.00021917,2]
[388796362,1759363835915,-1131.13,0.00021917,2]
[388796363,1759363835924,-622.56,0.00021917,2]
[388796364,1759363835934,-894.37,0.00021917,2]
[388796365,1759363835944,-500.0,0.00021917,2]
[388796366,1759363835956,-500.0,0.00021917,2]
[388796367,1759363835966,-500.0,0.00021917,2]
[388796368,1759363835976,-500.0,0.00021917,2]
[388796369,1759363835987,-402.79341693,0.00021917,2]
[388796370,1759363835998,-1513.23,0.00021917,2]
[388796371,1759363836008,-932.35,0.00021917,2]
[388796372,1759363836017,-911.0,0.00021917,2]
[388796373,1759363836028,-500.0,0.00021917,2]
[388796374,1759363836038,-500.77,0.00021917,2]
[388796375,1759363836048,-500.0,0.00021917,2]
[388796376,1759363836057,-500.0,0.00021917,2]
[388796377,1759363836067,-500.0,0.00021917,2]
[388796378,1759363836077,-500.0,0.00021917,2]
[388796379,1759363836087,-839.31,0.00021917,2]
[388796380,1759363836096,-500.0,0.00021917,2]
[388796381,1759363836106,-725.74,0.00021917,2]
[388796382,1759363836116,-500.0,0.00021917,2]
[388796383,1759363836125,-928.04,0.00021917,2]
[388796384,1759363836135,-629.74,0.00021917,2]
[388796385,1759363836144,-1155.02,0.00021917,2]
[388796386,1759363836153,-500.0,0.00021917,2]
[388796387,1759363836163,-500.0,0.00021917,2]
[388796388,1759363836172,-2119.83,0.00021917,2]
[388796389,1759363836182,-500.0,0.00021917,2]
[388796390,1759363836192,-2561.27,0.00021917,2]
[388796391,1759363836202,-500.0,0.00021917,2]
[388796392,1759363836211,-91.54693257,0.00021917,2]
[388796393,1759363836781,-556.8968615,0.00021917,2]
[388796394,1759363836794,-401.60620593,0.00021917,2]
[388796395,1759363836803,-639.33,0.00021917,2]
[388796396,1759363836813,-500.0,0.00021917,2]
[388796397,1759363836822,-500.0,0.00021917,2]
[388796398,1759363836831,-930.37,0.00021917,2]
[388796399,1759363836841,-500.0,0.00021917,2]
[388796400,1759363836850,-613.41,0.00021917,2]
[388796401,1759363836860,-500.0,0.00021917,2]
[388796402,1759363836869,-500.0,0.00021917,2]
[388796403,1759363836878,-503.32,0.00021917,2]
[388796404,1759363836888,-500.0,0.00021917,2]
[388796405,1759363836897,-1742.53,0.00021917,2]
[388796406,1759363836906,-500.0,0.00021917,2]
[388796407,1759363836916,-500.0,0.00021917,2]
[388796408,1759363836925,-1000.44,0.00021917,2]
[388796409,1759363836936,-1029.47,0.00021917,2]
[388796410,1759363836947,-500.0,0.00021917,2]
[388796411,1759363836957,-937.02,0.00021917,2]
[388796412,1759363836967,-452.25356414,0.00021917,2]
[388796413,1759363836976,-500.0,0.00021917,2]
[388796414,1759363836987,-1811.3,0.00021917,2]
[388796415,1759363836998,-2170.86,0.00021917,2]
[388796416,1759363837008,-2020.34,0.00021917,2]
[388796417,1759363837018,-500.0,0.00021917,2]
[388796418,1759363837028,-1034.92,0.00021917,2]
[388796419,1759363837038,-500.0,0.00021917,2]
[388796420,1759363837048,-2023.61,0.00021917,2]
[388796421,1759363837058,-500.0,0.00021917,2]
[388796422,1759363837067,-500.0,0.00021917,2]
[388796423,1759363837077,-3.04494178,0.00021917,2]
[388796424,1759363837090,-496.95505822,0.00021917,2]
[388796425,1759363837100,-500.0,0.00021917,2]
[388796426,1759363837110,-500.0,0.00021917,2]
[388796427,1759363837120,-500.0,0.00021917,2]
[388796428,1759363837130,-2126.47,0.00021917,2]
[388796429,1759363837140,-500.0,0.00021917,2]
[388796430,1759363837150,-169.01565608,0.00021917,2]
[388796431,1759363837163,-330.98434392,0.00021917,2]
[388796432,1759363837172,-500.0,0.00021917,2]
[388796433,1759363837182,-496.34149783,0.00021917,2]
[388796434,1759363837192,-955.4,0.00021917,2]
[388796435,1759363837201,-500.0,0.00021917,2]
[388796436,1759363837210,-999.63,0.00021917,2]
[388796437,1759363837219,-500.0,0.00021917,2]
[388796438,1759363837229,-500.0,0.00021917,2]
[388796439,1759363837238,-500.0,0.00021917,2]
[388796441,1759363837250,-847.79,0.00021917,2]
[388796443,1759363837262,-2264.82,0.00021917,2]
[388796445,1759363837272,-929.82,0.00021917,2]
[388796446,1759363837281,-1553.44,0.00021917,2]
[388796447,1759363837290,-2226.48,0.00021917,2]
[388796448,1759363837299,-500.0,0.00021917,2]
[388796449,1759363837312,-518.7,0.00021917,2]
[388796450,1759363837321,-1410.82,0.00021917,2]
[388796451,1759363837331,-500.0,0.00021917,2]
[388796452,1759363837340,-2635.63,0.00021917,2]
[388796453,1759363837350,-257.57174675,0.00021917,2]
[388796454,1759363837359,-500.0,0.00021917,2]
[388796455,1759363837368,-2120.95,0.00021917,2]
[388796456,1759363837378,-937.66,0.00021917,2]
[388796457,1759363837389,-500.0,0.00021917,2]
[388796458,1759363837399,-500.0,0.00021917,2]
[388796459,1759363837409,-500.0,0.00021917,2]
[388796460,1759363837418,-500.0,0.00021917,2]
[388796461,1759363837428,-500.0,0.00021917,2]
[388796462,1759363837438,-2551.82,0.00021917,2]
[388796463,1759363837447,-500.0,0.00021917,2]
[388796464,1759363837457,-1688.27,0.00021917,2]
[388796465,1759363837466,-500.0,0.00021917,2]